bitfinex-derivatives/quotes_SOLF0:USTF0_20260310
["timestamp","ask_amount","ask_price","bid_price","bid_amount"]
[1773150266837,10.453,86.093,86.032,10.46]
[1773150267237,4.28224827,86.119,86.032,4.21306307]
[1773150267839,4.28224827,86.119,86.033,4.21306307]
[1773150268239,9.25779453,86.12,86.011,4.21306307]
[1773150268240,4.28224827,86.087,86.011,4.21306307]
[1773150268736,4.28224827,86.119,86.031,4.21306307]
[1773150268937,10.453,86.091,86.031,4.21306307]
[1773150269142,14.73524827,86.091,86.031,4.21306307]
[1773150269341,4.28224827,86.09,86.011,4.21306307]
[1773150269541,4.28224827,86.09,86.013,10.462]
[1773150269740,162.521,86.139,85.953,20.94]
[1773150269741,4.28224827,86.079,85.991,4.21306307]
[1773150269939,10.456,86.064,85.991,4.21306307]
[1773150270136,10.456,86.064,86.004,4.21306307]
[1773150270336,4.28224827,86.079,86.004,4.21306307]
[1773150270838,14.73724827,86.079,86.014,4.21306307]
[1773150271234,10.453,86.089,86.028,10.461]
[1773150271439,10.453,86.089,86.028,14.67406307]
[1773150271835,14.73424827,86.098,86.037,10.46]
[1773150272040,14.73424827,86.098,86.028,4.21306307]
[1773150272041,4.28224827,86.098,86.028,4.21306307]
[1773150272435,162.42,86.192,85.98,9.25779453]
[1773150272436,4.28224827,86.119,86.053,4.21306307]
[1773150272636,4.28224827,86.119,86.021,4.21306307]
[1773150272838,20.887,86.171,86.079,10.454]
[1773150272839,10.448,86.136,86.079,10.454]
[1773150273037,4.28224827,86.141,86.064,4.21306307]
[1773150273538,4.28224827,86.139,86.045,5.00457303]
[1773150273742,4.52605644,86.119,86.045,5.00457303]
[1773150275340,10.45,86.113,86.047,10.458]
[1773150275542,4.52605644,86.119,86.047,10.458]
[1773150275943,4.52605644,86.114,86.055,10.457]
[1773150276142,4.52605644,86.114,86.047,5.00457303]
[1773150276343,10.452,86.099,86.047,5.00457303]
[1773150277341,4.52605644,86.135,86.047,5.00457303]
[1773150277546,4.52605644,86.135,86.051,5.00457303]
[1773150277747,4.52605644,86.135,86.066,10.456]
[1773150277944,10.449,86.121,86.051,5.00457303]
[1773150278143,4.52605644,86.135,86.051,5.00457303]
[1773150278648,9.25779453,86.14,86.058,5.00457303]
[1773150278649,4.52605644,86.119,86.058,5.00457303]
[1773150279250,10.451,86.11,86.058,5.00457303]
[1773150279647,10.451,86.11,86.05,10.458]
[1773150279846,10.451,86.11,86.03,9.25779453]
[1773150279847,10.451,86.11,86.056,10.457]
[1773150280246,10.451,86.11,86.051,5.00457303]
[1773150280552,9.25779453,86.16,86.0,20.929]
[1773150280553,4.52605644,86.084,86.032,10.46]
[1773150280749,4.52605644,86.084,86.009,5.00457303]
[1773150280951,4.52605644,86.084,86.0,9.25779453]
[1773150280952,4.52605644,86.106,86.041,5.00457303]
[1773150281154,10.451,86.105,86.041,5.00457303]
[1773150281349,4.52605644,86.106,86.041,5.00457303]
[1773150281750,9.25779453,86.12,86.041,5.00457303]
[1773150282053,4.52605644,86.125,86.041,5.00457303]
[1773150282353,9.25779453,86.22,86.065,10.456]
[1773150282354,10.45,86.118,86.065,10.456]
[1773150282854,20.887,86.172,86.079,5.00457303]
[1773150282855,4.52605644,86.148,86.079,5.00457303]
[1773150283251,10.449,86.127,86.079,5.00457303]
[1773150283453,10.449,86.127,86.02,20.924]
[1773150283454,4.52605644,86.127,86.034,5.00457303]
[1773150283752,13.78385097,86.12,86.034,5.00457303]
[1773150283961,4.52605644,86.119,86.034,5.00457303]
[1773150285452,4.52605644,86.119,86.053,5.00457303]
[1773150285650,4.52605644,86.149,86.053,5.00457303]
[1773150286052,4.52605644,86.149,86.05,9.25779453]
[1773150286053,10.45,86.113,86.064,4.95108091]
[1773150286261,4.52605644,86.149,86.064,4.95108091]
[1773150286856,4.52605644,86.149,86.084,10.454]
[1773150287056,4.52605644,86.149,86.064,4.95108091]
[1773150288059,4.52605644,86.149,86.072,10.455]
[1773150288060,10.449,86.125,86.072,10.455]
[1773150288352,4.52605644,86.149,86.064,4.95108091]
[1773150289354,10.45,86.118,86.064,15.40708091]
[1773150289551,5.03527635,86.129,86.05,9.25779453]
[1773150289753,5.03527635,86.129,86.051,4.95108091]
[1773150289956,10.45,86.119,86.051,4.95108091]
[1773150290156,5.03527635,86.129,86.051,4.95108091]
[1773150290565,5.03527635,86.149,86.069,4.95108091]
[1773150291264,10.448,86.137,86.084,10.454]
[1773150291564,5.03527635,86.149,86.084,4.95108091]
[1773150291766,5.03527635,86.149,86.089,10.453]
[1773150291966,9.25779453,86.17,86.084,4.95108091]
[1773150291967,5.03527635,86.17,86.084,4.95108091]
[1773150292258,20.883,86.189,86.084,4.95108091]
[1773150292259,5.03527635,86.159,86.086,10.454]
[1773150292664,5.03527635,86.159,86.086,15.40508091]
[1773150293161,5.03527635,86.159,86.086,4.95108091]
[1773150293461,5.03527635,86.139,86.051,4.95108091]
[1773150293862,10.448,86.136,86.084,10.454]
[1773150294062,10.448,86.136,86.084,15.40508091]
[1773150294460,10.449,86.124,86.084,4.95108091]
[1773150294659,5.03527635,86.139,86.084,4.95108091]
[1773150295062,10.448,86.137,86.085,10.454]
[1773150295263,5.03527635,86.139,86.084,4.95108091]
[1773150295565,10.449,86.121,86.069,10.456]
[1773150295764,5.03527635,86.139,86.051,4.95108091]
[1773150296163,5.03527635,86.139,86.064,10.456]
[1773150296364,5.03527635,86.139,86.051,4.95108091]
[1773150296659,10.451,86.111,86.06,10.457]
[1773150297970,5.03527635,86.139,86.051,4.95108091]
[1773150298562,5.03527635,86.139,86.075,10.455]
[1773150299062,10.451,86.11,86.065,10.456]
[1773150299267,5.03527635,86.129,86.065,10.456]
[1773150299465,5.03527635,86.129,86.059,4.95108091]
[1773150299966,10.451,86.11,86.06,10.457]
[1773150300370,10.451,86.11,86.013,14.05121703]
[1773150300371,5.03527635,86.109,86.037,4.95108091]
[1773150300564,9.25779453,86.09,86.037,4.95108091]
[1773150300866,9.25779453,86.09,85.969,34.83]
[1773150300867,5.03527635,86.089,86.011,4.95108091]
[1773150301266,5.03527635,86.069,85.991,4.95108091]
[1773150302164,5.03527635,86.059,85.961,4.95108091]
[1773150302362,9.25779453,86.09,85.961,4.95108091]
[1773150302363,5.03527635,86.039,85.961,4.95108091]
[1773150302869,10.458,86.05,85.961,4.95108091]
[1773150303068,10.458,86.05,85.971,4.95108091]
[1773150303270,5.03527635,86.058,85.971,4.95108091]
[1773150303458,5.03527635,86.058,85.998,4.95108091]
[1773150303661,5.007174,86.077,85.998,4.95108091]
[1773150303860,10.459,86.042,85.998,4.95108091]
[1773150304063,10.459,86.042,85.979,10.467]
[1773150304467,5.007174,86.058,85.997,10.464]
[1773150304662,5.007174,86.058,85.978,5.1674638]
[1773150304861,5.007174,86.058,85.99,9.25779453]
[1773150305165,5.007174,86.079,86.009,5.1674638]
[1773150305468,5.007174,86.079,85.989,5.1674638]
[1773150305665,9.25779453,86.09,85.989,5.1674638]
[1773150305666,5.007174,86.049,85.989,5.1674638]
[1773150305867,5.007174,86.049,85.951,5.1674638]
[1773150306262,5.007174,86.049,85.98,10.466]
[1773150306569,5.007174,86.049,85.977,5.1674638]
[1773150306763,10.459,86.039,85.977,5.1674638]
[1773150306968,5.007174,86.039,85.977,5.1674638]
[1773150307369,10.459,86.038,85.977,5.1674638]
[1773150307560,5.007174,86.039,85.977,5.1674638]
[1773150307764,5.007174,86.059,85.977,5.1674638]
[1773150308262,9.25779453,86.05,85.977,5.1674638]
[1773150308463,9.25779453,86.05,85.948,20.941]
[1773150308464,5.007174,86.079,85.991,5.1674638]
[1773150308660,162.541,86.128,85.991,5.1674638]
[1773150308661,5.007174,86.059,85.991,5.1674638]
[1773150309066,5.007174,86.059,86.002,10.464]
[1773150309363,5.007174,86.059,86.002,5.1674638]
[1773150309759,10.457,86.058,86.002,5.1674638]
[1773150309960,5.007174,86.059,86.002,5.1674638]
[1773150310167,5.007174,86.059,85.971,14.36561795]
[1773150310168,5.007174,86.059,85.97,9.25779453]
[1773150310369,5.007174,86.059,85.995,10.465]
[1773150310769,5.007174,86.059,85.97,9.25779453]
[1773150311162,5.007174,86.059,85.992,10.465]
[1773150311163,10.458,86.05,85.992,10.465]
[1773150311970,5.007174,86.059,85.983,10.466]
[1773150312672,5.007174,86.059,85.976,5.1674638]
[1773150313663,5.007174,86.059,85.981,5.1674638]
[1773150314077,10.458,86.048,85.991,10.465]
[1773150314368,5.007174,86.059,85.991,10.465]
[1773150314770,5.007174,86.079,86.001,5.1674638]
[1773150315169,10.457,86.059,86.009,10.463]
[1773150315375,5.007174,86.079,86.009,10.463]
[1773150315670,9.25779453,86.09,85.98,9.25779453]
[1773150315671,5.007174,86.101,86.021,5.1674638]
[1773150316171,5.007174,86.089,86.001,5.1674638]
[1773150316469,5.007174,86.089,85.976,21.06898356]
[1773150316470,5.007174,86.058,85.981,5.1674638]
[1773150316675,5.007174,86.049,85.962,5.1674638]
[1773150317170,5.007174,86.031,85.962,5.1674638]
[1773150317372,9.25779453,86.05,85.962,5.1674638]
[1773150317373,5.007174,86.029,85.962,5.1674638]
[1773150317674,5.007174,86.029,85.942,5.1674638]
[1773150318274,5.007174,86.029,85.949,10.47]
[1773150318275,10.462,86.014,85.949,10.47]
[1773150318466,5.007174,86.013,85.949,10.47]
[1773150318667,9.25779453,86.03,85.942,5.1674638]
[1773150318668,5.007174,86.009,85.942,5.1674638]
[1773150319670,5.007174,86.009,85.961,10.469]
[1773150319865,5.007174,86.009,85.942,5.1674638]
[1773150320170,5.007174,86.029,85.942,5.1674638]
[1773150320370,10.463,86.013,85.942,5.1674638]
[1773150320675,5.007174,86.029,85.942,5.1674638]
[1773150321274,10.463,86.006,85.953,10.47]
[1773150321572,5.007174,86.011,85.953,10.47]
[1773150321773,10.463,86.01,85.953,10.47]
[1773150322073,5.007174,85.999,85.921,5.1674638]
[1773150322670,5.007174,85.999,85.932,10.472]
[1773150322869,9.25779453,86.03,85.921,5.1674638]
[1773150322870,5.007174,86.041,85.921,5.1674638]
[1773150323074,5.007174,86.029,85.941,5.1674638]
[1773150323276,5.007174,86.01,85.941,5.1674638]
[1773150323776,5.007174,86.006,85.941,5.1674638]
[1773150324275,9.25779453,86.03,85.941,5.1674638]
[1773150324276,5.007174,86.026,85.941,5.1674638]
[1773150324779,10.464,85.997,85.941,5.1674638]
[1773150325177,5.007174,86.007,85.941,5.1674638]
[1773150325680,9.25779453,86.01,85.922,5.1674638]
[1773150325681,5.007174,85.996,85.922,5.1674638]
[1773150326375,10.467,85.976,85.922,5.1674638]
[1773150326574,5.007174,85.989,85.922,5.1674638]
[1773150326972,10.466,85.985,85.931,10.472]
[1773150327378,5.007174,85.984,85.922,5.1674638]
[1773150327883,5.007174,86.005,85.922,5.1674638]
[1773150328475,5.007174,85.989,85.926,10.473]
[1773150328679,5.007174,85.989,85.922,5.1674638]
[1773150329079,10.467,85.975,85.923,10.473]
[1773150329275,10.467,85.975,85.922,5.1674638]
[1773150329472,5.007174,85.969,85.891,5.1674638]
[1773150329879,10.468,85.967,85.891,5.1674638]
[1773150330775,9.27513644,85.97,85.891,5.1674638]
[1773150330776,5.007174,85.958,85.891,5.1674638]
[1773150331083,5.007174,85.958,85.872,5.1674638]
[1773150331384,5.007174,85.952,85.889,10.478]
[1773150331578,5.007174,85.969,85.891,5.1674638]
[1773150332084,15.475174,85.969,85.916,10.474]
[1773150332288,5.007174,85.969,85.916,10.474]
[1773150332680,5.007174,85.969,85.909,5.1674638]
[1773150333183,5.007174,85.969,85.917,10.474]
[1773150333375,5.007174,85.969,85.909,5.1674638]
[1773150333575,5.007174,85.969,85.89,9.27513644]
[1773150333785,5.007174,85.969,85.854,20.964]
[1773150333786,5.007174,85.969,85.871,5.99418046]
[1773150334479,5.007174,85.969,85.897,5.99418046]
[1773150335185,5.007174,85.969,85.924,10.473]
[1773150335686,5.007174,85.969,85.901,5.99418046]
[1773150336383,5.007174,85.969,85.87,9.27513644]
[1773150336384,5.007174,85.969,85.88,5.99418046]
[1773150337891,10.469,85.961,85.901,10.476]
[1773150338186,10.469,85.961,85.88,5.99418046]
[1773150338683,5.007174,85.969,85.919,10.474]
[1773150338890,5.007174,85.969,85.891,5.99418046]
[1773150339285,5.007174,85.969,85.911,10.475]
[1773150339691,5.007174,85.969,85.891,5.99418046]
[1773150340189,10.471,85.946,85.891,5.99418046]
[1773150340391,5.68038496,85.952,85.891,5.99418046]
[1773150340991,10.471,85.947,85.892,10.477]
[1773150341385,5.68038496,85.952,85.891,5.99418046]
[1773150342085,9.27513644,85.97,85.891,5.99418046]
[1773150342291,5.68038496,85.969,85.891,5.99418046]
[1773150342491,5.68038496,85.969,85.916,10.474]
[1773150342998,5.68038496,85.989,85.911,5.99418046]
[1773150343398,5.68038496,85.989,85.934,10.472]
[1773150343595,5.68038496,85.989,85.929,5.99418046]
[1773150343990,5.68038496,85.989,85.91,9.27513644]
[1773150343991,5.68038496,85.989,85.911,5.99418046]
[1773150345292,10.466,85.987,85.934,10.472]
[1773150345596,5.68038496,85.986,85.911,5.99418046]
[1773150345798,162.676,86.057,85.87,30.34412]
[1773150345799,5.68038496,86.008,85.931,5.99418046]
[1773150348000,5.90436362,86.029,85.954,6.15714022]
[1773150348394,5.90436362,86.029,85.93,9.27513644]
[1773150348395,5.90436362,86.029,85.931,6.15714022]
[1773150348594,10.464,85.997,85.941,10.471]
[1773150348798,5.90436362,85.997,85.941,10.471]
[1773150349199,5.90436362,85.997,85.948,10.47]
[1773150349704,5.90436362,85.997,85.931,6.15714022]
[1773150350093,16.36936362,85.997,85.946,10.471]
[1773150350496,5.90436362,85.997,85.946,10.471]
[1773150350700,5.90436362,86.029,85.947,6.15714022]
[1773150350906,5.90436362,86.021,85.951,6.15714022]
[1773150351207,5.90436362,86.04,85.961,6.15714022]
[1773150351804,5.90436362,86.038,85.961,6.15714022]
[1773150352605,5.90436362,86.036,85.961,6.15714022]
[1773150353197,5.90436362,86.036,85.963,6.15714022]
[1773150353403,5.90436362,86.056,85.981,6.15714022]
[1773150354510,10.459,86.045,85.983,10.466]
[1773150355112,10.459,86.045,85.984,6.15714022]
[1773150356005,5.90436362,86.054,85.988,10.465]
[1773150356712,5.90436362,86.059,85.982,6.15714022]
[1773150357012,5.90436362,86.059,85.996,10.465]
[1773150357213,5.90436362,86.078,86.001,6.15714022]
[1773150358004,5.90436362,86.099,86.021,6.15714022]
[1773150358611,5.90436362,86.096,86.033,10.46]
[1773150359007,20.894,86.143,86.022,10.461]
[1773150359008,5.90436362,86.085,86.022,10.461]
[1773150359214,5.90436362,86.085,86.021,6.15714022]
[1773150359614,5.90436362,86.085,86.025,10.461]
[1773150360016,5.90436362,86.085,86.021,6.15714022]
[1773150360212,5.90436362,86.085,85.96,21.06898356]
[1773150360213,10.458,86.053,85.995,10.465]
[1773150360416,5.90436362,86.067,85.985,6.15714022]
[1773150360615,5.90436362,86.067,85.964,14.27632098]
[1773150360616,5.90436362,86.086,86.024,10.461]
[1773150360819,5.90436362,86.086,86.018,6.15714022]
[1773150361115,14.00395175,86.164,86.0,9.27513644]
[1773150361116,16.36036362,86.068,86.0,6.15714022]
[1773150361316,5.90436362,86.068,86.0,6.15714022]
[1773150361518,5.90436362,86.099,86.001,6.15714022]
[1773150361711,5.90436362,86.099,86.0,9.27513644]
[1773150361712,5.90436362,86.099,86.028,6.15714022]
[1773150362423,9.27513644,86.12,85.985,20.932]
[1773150362424,5.90436362,86.118,86.041,6.15714022]
[1773150363618,5.90436362,86.118,86.022,6.1290473]
[1773150363815,6.3429914,86.099,86.035,10.46]
[1773150364222,6.3429914,86.099,86.022,6.1290473]
[1773150364410,6.3429914,86.095,86.022,6.1290473]
[1773150364810,2.02144004,86.149,85.98,23.55145742]
[1773150364811,6.3429914,86.114,86.051,6.1290473]
[1773150365116,6.3429914,86.133,86.051,6.1290473]
[1773150365311,6.3429914,86.123,86.031,6.1290473]
[1773150365714,6.3429914,86.13,86.068,6.1290473]
[1773150366019,6.3429914,86.13,86.05,9.27513644]
[1773150366020,6.3429914,86.139,86.071,6.1290473]
[1773150366716,6.3429914,86.134,86.071,6.1290473]
[1773150367218,9.27513644,86.14,86.041,6.1290473]
[1773150367219,6.3429914,86.113,86.041,6.1290473]
[1773150367717,6.3429914,86.113,86.054,10.457]
[1773150368321,6.3429914,86.111,86.043,10.459]
[1773150369310,9.27513644,86.12,86.024,6.1290473]
[1773150369311,6.3429914,86.101,86.024,6.1290473]
[1773150369512,6.3429914,86.099,86.024,6.1290473]
[1773150370116,10.453,86.089,86.024,6.1290473]
[1773150370317,6.3429914,86.099,86.024,6.1290473]
[1773150371015,6.3429914,86.099,86.02,9.27513644]
[1773150371016,6.3429914,86.079,86.001,6.1290473]
[1773150371419,9.27513644,86.1,85.981,6.1290473]
[1773150371420,6.3429914,86.055,85.981,6.1290473]
[1773150372015,10.455,86.072,86.01,10.463]
[1773150372421,6.3429914,86.079,86.003,6.1290473]
[1773150373012,6.3429914,86.079,85.98,9.27513644]
[1773150373013,6.3429914,86.079,86.005,6.1290473]
[1773150373917,6.3429914,86.099,86.021,6.1290473]
[1773150374225,6.3429914,86.099,86.031,6.1290473]
[1773150374523,6.3429914,86.099,86.056,10.457]
[1773150374816,9.27513644,86.13,86.031,6.1290473]
[1773150374817,6.3429914,86.118,86.031,6.1290473]
[1773150375021,162.393,86.207,85.986,162.808]
[1773150375022,6.3429914,86.138,86.051,6.1290473]
[1773150375211,9.27513644,86.15,86.051,6.1290473]
[1773150375416,6.3429914,86.148,86.051,6.1290473]
[1773150376019,10.45,86.117,86.065,10.456]
[1773150376322,6.3429914,86.128,86.051,6.1290473]
[1773150376619,6.3429914,86.151,86.071,6.1290473]
[1773150377026,10.444,86.163,86.108,10.451]
[1773150377319,6.3429914,86.173,86.111,6.1290473]
[1773150377620,2.02031344,86.189,86.111,6.1290473]
[1773150377923,6.3429914,86.199,86.133,6.1290473]
[1773150378312,6.3429914,86.199,86.135,10.448]
[1773150378516,6.3429914,86.199,86.11,9.27513644]
[1773150378517,6.3429914,86.219,86.136,6.1290473]
[1773150378714,6.3429914,86.219,86.11,9.27513644]
[1773150378715,6.3429914,86.219,86.141,6.1290473]
[1773150379017,6.3429914,86.219,86.15,6.1290473]
[1773150379216,9.27513644,86.24,86.11,9.27513644]
[1773150379217,6.3429914,86.24,86.161,6.1290473]
[1773150379413,6.3429914,86.238,86.161,6.1290473]
[1773150379620,6.3429914,86.219,86.137,6.1290473]
[1773150379823,6.3429914,86.219,86.149,6.1290473]
[1773150380019,6.3429914,86.239,86.151,6.1290473]
[1773150380717,10.435,86.238,86.172,10.443]
[1773150380919,6.3429914,86.239,86.172,16.5720473]
[1773150381223,6.3429914,86.239,86.173,6.1290473]
[1773150381517,6.3429914,86.239,86.11,9.27513644]
[1773150381518,6.3429914,86.219,86.14,9.27513644]
[1773150381721,6.3429914,86.219,86.133,6.1290473]
[1773150382118,6.3429914,86.217,86.133,6.1290473]
[1773150382824,2.0189128,86.249,86.055,14.2036987]
[1773150382825,6.3429914,86.205,86.112,6.1290473]
[1773150383218,6.3429914,86.205,86.135,10.448]
[1773150383521,6.3429914,86.205,86.112,6.1290473]
[1773150383914,6.3429914,86.201,86.123,10.449]
[1773150384515,6.3429914,86.201,86.134,10.448]
[1773150384925,6.3429914,86.201,86.112,6.1290473]
[1773150386418,9.27513644,86.21,86.112,6.1290473]
[1773150386419,6.3429914,86.198,86.112,6.1290473]
[1773150386615,9.27513644,86.21,86.11,9.27513644]
[1773150386616,9.27513644,86.21,86.131,6.1290473]
[1773150386825,9.27513644,86.21,86.13,9.27513644]
[1773150386826,6.3429914,86.221,86.157,10.445]
[1773150387220,6.3429914,86.221,86.151,6.1290473]
[1773150387820,6.3429914,86.243,86.151,6.1290473]
[1773150388020,6.3429914,86.229,86.151,6.1290473]
[1773150388727,6.3429914,86.229,86.161,6.1290473]
[1773150389026,6.3429914,86.247,86.161,6.1290473]
[1773150389522,6.3429914,86.241,86.171,10.443]
[1773150390227,6.3429914,86.24,86.171,10.443]
[1773150390818,6.3429914,86.24,86.172,6.1290473]
[1773150391132,6.3429914,86.258,86.197,6.1290473]
[1773150391424,6.3429914,86.258,86.17,9.22709814]
[1773150391425,6.3429914,86.258,86.171,6.1290473]
[1773150392016,6.3429914,86.247,86.181,10.442]
[1773150392221,6.3429914,86.247,86.15,9.22709814]
[1773150392417,2.01854978,86.269,86.151,16.5750473]
[1773150392418,6.3429914,86.216,86.151,16.5750473]
[1773150393330,6.3429914,86.216,86.159,10.445]
[1773150394020,6.3429914,86.216,86.168,10.444]
[1773150394221,6.71232963,86.239,86.151,6.1290473]
[1773150394620,10.437,86.227,86.159,10.445]
[1773150394823,6.71232963,86.226,86.16,6.88194374]
[1773150395219,10.437,86.225,86.162,10.444]
[1773150395425,6.71232963,86.219,86.121,6.88194374]
[1773150395826,9.22709814,86.24,86.141,6.88194374]
[1773150396023,6.71232963,86.268,86.181,6.88194374]
[1773150396429,17.14432963,86.268,86.181,6.88194374]
[1773150396629,6.71232963,86.267,86.181,6.88194374]
[1773150397231,6.71232963,86.267,86.201,6.88194374]
[1773150397621,6.71232963,86.298,86.23,16.10904188]
[1773150397820,6.71232963,86.298,86.231,6.88194374]
[1773150398029,6.71232963,86.298,86.169,162.462]
[1773150398030,6.71232963,86.287,86.22,9.22709814]
[1773150398231,6.71232963,86.287,86.221,6.88194374]
[1773150398732,6.71232963,86.287,86.22,9.22709814]
[1773150398733,10.432,86.268,86.22,9.22709814]
[1773150398933,6.71232963,86.287,86.22,9.22709814]
[1773150399234,6.71232963,86.287,86.202,6.88194374]
[1773150399434,6.71232963,86.308,86.221,6.88194374]
[1773150399735,20.844,86.349,86.22,9.22709814]
[1773150399736,6.71232963,86.344,86.28,9.22709814]
[1773150400131,9.22709814,86.39,86.22,9.22709814]
[1773150400132,6.71232963,86.365,86.301,6.88194374]
[1773150400526,6.71232963,86.365,86.28,9.22709814]
[1773150400831,10.423,86.342,86.282,10.43]
[1773150401030,6.71232963,86.337,86.26,9.22709814]
[1773150401231,6.71232963,86.337,86.261,6.88194374]
[1773150402736,6.71232963,86.337,86.264,6.88194374]
[1773150403228,6.71232963,86.336,86.264,6.88194374]
[1773150403430,6.71232963,86.336,86.26,9.22709814]
[1773150403835,6.71232963,86.326,86.26,9.22709814]
[1773150404335,6.71232963,86.301,86.24,9.22709814]
[1773150405036,6.71232963,86.301,86.242,10.435]
[1773150405836,9.22709814,86.34,86.191,20.882]
[1773150405837,6.71232963,86.3,86.23,16.10904188]
[1773150406039,6.71232963,86.3,86.231,6.88194374]
[1773150406537,17.14032963,86.3,86.231,6.88194374]
[1773150406736,6.81954763,86.299,86.231,6.88194374]
[1773150407132,6.81954763,86.294,86.231,6.88194374]
[1773150407835,6.81954763,86.294,86.23,9.22709814]
[1773150408639,6.81954763,86.293,86.23,9.22709814]
[1773150409137,6.81954763,86.292,86.23,9.22709814]
[1773150409735,6.81954763,86.292,86.231,10.436]
[1773150410134,6.81954763,86.292,86.231,6.80108469]
[1773150410339,162.066,86.381,86.251,6.80108469]
[1773150410340,6.81954763,86.337,86.251,6.80108469]
[1773150410738,20.84,86.366,86.251,6.80108469]
[1773150410739,6.81954763,86.315,86.251,6.80108469]
[1773150411138,6.81954763,86.337,86.251,6.80108469]
[1773150411340,6.81954763,86.337,86.271,6.80108469]
[1773150411545,6.81954763,86.337,86.26,9.22709814]
[1773150411941,6.81954763,86.325,86.264,10.432]
[1773150412139,6.81954763,86.325,86.249,6.80108469]
[1773150412437,10.427,86.308,86.25,16.02818283]
[1773150412637,17.24654763,86.308,86.25,16.02818283]
[1773150413043,10.428,86.299,86.25,16.02818283]
[1773150413246,10.428,86.299,86.25,9.22709814]
[1773150413543,9.22709814,86.34,86.23,6.80108469]
[1773150413544,6.81954763,86.298,86.239,10.435]
[1773150413941,6.81954763,86.298,86.23,9.22709814]
[1773150414143,6.81954763,86.298,86.182,20.884]
[1773150414144,6.81954763,86.298,86.211,6.80108469]
[1773150414445,6.81954763,86.298,86.226,10.437]
[1773150414940,10.43,86.28,86.217,10.438]
[1773150415141,17.24954763,86.28,86.217,10.438]
[1773150415639,6.81954763,86.28,86.211,6.80108469]
[1773150415841,6.81954763,86.319,86.211,6.80108469]
[1773150416639,10.43,86.281,86.225,10.437]
[1773150417442,10.43,86.281,86.149,34.83]
[1773150417443,6.81954763,86.311,86.231,6.80108469]
[1773150417648,6.81954763,86.311,86.25,9.22709814]
[1773150418247,10.428,86.301,86.25,9.22709814]
[1773150418447,6.81954763,86.337,86.251,6.80108469]
[1773150418948,10.426,86.314,86.259,10.433]
[1773150419243,17.24554763,86.314,86.259,10.433]
[1773150419950,6.81954763,86.314,86.267,10.432]
[1773150420249,6.81954763,86.314,86.251,6.80108469]
[1773150420638,6.81954763,86.337,86.27,9.22709814]
[1773150420845,6.81954763,86.337,86.271,6.80108469]
[1773150421046,6.81954763,86.337,86.221,34.83]
[1773150421047,6.81954763,86.359,86.297,10.428]
[1773150421354,6.81954763,86.378,86.31,9.22709814]
[1773150421543,6.81954763,86.378,86.311,6.80108469]
[1773150421739,10.42,86.364,86.311,6.80108469]
[1773150422146,10.421,86.356,86.31,9.22709814]
[1773150422345,10.421,86.356,86.291,6.80108469]
[1773150422647,10.423,86.342,86.282,10.43]
[1773150422948,6.81954763,86.379,86.29,9.22709814]
[1773150423645,6.81954763,86.379,86.3,10.428]
[1773150424140,6.81954763,86.379,86.31,9.22709814]
[1773150424141,10.42,86.367,86.31,9.22709814]
[1773150424346,6.81954763,86.379,86.31,9.22709814]
[1773150424543,6.81954763,86.379,86.291,7.22356773]
[1773150424745,10.42,86.367,86.304,10.427]
[1773150424953,6.81954763,86.379,86.304,10.427]
[1773150425247,6.81954763,86.379,86.291,7.22356773]
[1773150425449,6.81954763,86.379,86.31,9.22709814]
[1773150425645,6.81954763,86.379,86.291,7.22356773]
[1773150426042,10.42,86.361,86.302,10.427]
[1773150426243,10.42,86.361,86.291,7.22356773]
[1773150426244,6.81954763,86.379,86.291,7.22356773]
[1773150426549,6.81954763,86.379,86.304,10.427]
[1773150426752,6.81954763,86.379,86.291,7.22356773]
[1773150427247,6.81954763,86.379,86.31,9.22709814]
[1773150427452,6.81954763,86.379,86.291,7.22356773]
[1773150427647,6.81954763,86.379,86.301,7.22356773]
[1773150428449,6.81954763,86.379,86.281,7.22356773]
[1773150428754,6.96733012,86.369,86.281,7.22356773]
[1773150429151,6.96733012,86.369,86.299,10.428]
[1773150429359,6.96733012,86.369,86.301,7.22356773]
[1773150429747,17.38633012,86.369,86.312,10.426]
[1773150429946,2.01552767,86.389,86.301,7.22356773]
[1773150429947,6.96733012,86.39,86.321,7.22356773]
[1773150431159,10.418,86.379,86.321,7.22356773]